fUST/lending_fUST_20250802
["ID","MTS","AMOUNT","RATE_DAILY","PERIOD"]
[376769600,1754110250953,-460.0,0.00026979,10]
[376769601,1754110250964,-385.37,0.00026979,10]
[376769602,1754110250973,-460.0,0.00026979,10]
[376769603,1754110250983,-460.0,0.00026979,10]
[376769604,1754110250992,-460.0,0.00026979,10]
[376769605,1754110251001,-460.0,0.00026979,10]
[376769606,1754110251010,-460.0,0.00026979,10]
[376769607,1754110251020,-460.0,0.00026979,10]
[376769608,1754110251030,-460.0,0.00026979,10]
[376769609,1754110251039,-460.0,0.00026979,10]
[376769610,1754110251048,-460.0,0.00026979,10]
[376769611,1754110251058,-460.0,0.00026979,10]
[376769612,1754110251067,-460.0,0.00026979,10]
[376769613,1754110251077,-460.0,0.00026979,10]
[376769614,1754110251086,-460.0,0.00026979,10]
[376769615,1754110251095,-460.0,0.00026979,10]
[376769616,1754110251105,-460.0,0.00026979,10]
[376769617,1754110251202,-460.0,0.00026979,10]
[376769618,1754110251211,-460.0,0.00026979,10]
[376769619,1754110251222,-2111.55985647,0.00026979,2]
[376769620,1754110251231,-249.91452017,0.00026979,2]
[376769621,1754110251239,-460.0,0.0002698,10]
[376769622,1754110251249,-461.35713718,0.0002698,10]
[376769623,1754110251258,-460.67597094,0.0002698,10]
[376769624,1754110251267,-462.81988368,0.0002698,10]
[376769625,1754110251276,-460.0,0.0002698,10]
[376769626,1754110251285,-460.0,0.0002698,10]
[376769627,1754110251294,-460.0,0.0002698,10]
[376769628,1754110251305,-460.0,0.0002698,10]
[376769629,1754110251316,-461.62555976,0.0002698,10]
[376769630,1754110251325,-462.03692296,0.0002698,10]
[376769631,1754110251336,-464.5064983,0.0002698,10]
[376769632,1754110251346,-461.78782675,0.0002698,10]
[376769633,1754110251355,-460.0,0.0002698,10]
[376769634,1754110251364,-160.5728854,0.0002698,10]
[376769635,1754110251374,-460.0,0.0002698,10]
[376769636,1754110251383,-460.0,0.0002698,10]
[376769637,1754110251392,-460.0,0.0002698,10]
[376769638,1754110251401,-463.97577019,0.0002698,10]
[376769639,1754110251411,-513.73565203,0.0002698,10]
[376769640,1754110251420,-460.0,0.0002698,10]
[376769641,1754110251429,-460.0,0.0002698,10]
[376769642,1754110251438,-460.0,0.0002698,10]
[376769643,1754110251447,-460.0,0.0002698,10]
[376769644,1754110251456,-460.0,0.0002698,10]
[376769645,1754110251465,-209.65172473,0.0002698,10]
[376769646,1754110251474,-462.64712048,0.0002698,10]
[376769647,1754110251483,-461.80888257,0.0002698,10]
[376769648,1754110251492,-460.0,0.0002698,10]
[376769649,1754110251501,-460.96128331,0.0002698,10]
[376769650,1754110251511,-211.31705112,0.0002698,10]
[376769651,1754110251520,-467.44908433,0.0002698,10]
[376769652,1754110251529,-460.0,0.0002698,10]
[376769653,1754110251539,-460.0,0.0002698,10]
[376769654,1754110251548,-460.0,0.0002698,10]
[376769655,1754110251559,-462.80470876,0.0002698,10]
[376769656,1754110251568,-460.0,0.0002698,10]
[376769657,1754110251577,-465.09911198,0.0002698,10]
[376769658,1754110251587,-461.04028458,0.0002698,10]
[376769659,1754110251596,-460.0,0.0002698,10]
[376769660,1754110251605,-460.0,0.0002698,10]
[376769661,1754110251614,-461.12062972,0.0002698,10]
[376769662,1754110251623,-463.81673009,0.0002698,10]
[376769663,1754110251632,-461.67111449,0.0002698,10]
[376769664,1754110251640,-461.51699482,0.0002698,10]
[376769665,1754110251650,-461.4744054,0.0002698,10]
[376769666,1754110251659,-461.64902748,0.0002698,10]
[376769667,1754110251668,-463.16488377,0.0002698,10]
[376769668,1754110251677,-464.90241436,0.0002698,10]
[376769669,1754110251686,-460.0,0.0002698,10]
[376769670,1754110251695,-460.0,0.0002698,10]
[376769671,1754110251704,-463.00835285,0.0002698,10]
[376769672,1754110251713,-462.47270714,0.0002698,10]
[376769673,1754110251722,-286.64545888,0.0002698,10]
[376769674,1754110251733,-463.59692732,0.0002698,10]
[376769675,1754110251742,-460.0,0.0002698,10]
[376769676,1754110251751,-460.0,0.0002698,10]
[376769677,1754110251763,-462.30488426,0.0002698,10]
[376769678,1754110251776,-160.840891,0.0002698,7]
[376769679,1754110251786,-461.16540316,0.0002698,10]
[376769680,1754110251795,-464.4765252,0.0002698,10]
[376769681,1754110251808,-462.07957994,0.0002698,10]
[376769682,1754110251819,-151.0,0.0002698,7]
[376769683,1754110251829,-407.46804474,0.0002698,10]
[376769684,1754110251838,-462.80407505,0.0002698,10]
[376769685,1754110251847,-463.27027894,0.0002698,10]
[376769686,1754110251856,-237.87613461,0.0002698,10]
[376769687,1754110251865,-151.0,0.0002698,15]
[376769688,1754110251875,-462.47121855,0.0002698,10]
[376769689,1754110251884,-292.62510125,0.0002698,15]
[376769690,1754110251894,-151.0,0.0002698,15]
[376769691,1754110251904,-462.94528208,0.0002698,10]
[376769692,1754110251913,-461.89232617,0.0002698,10]
[376769693,1754110251923,-461.22779773,0.0002698,10]
[376769694,1754110251933,-460.0,0.0002698,10]
[376769695,1754110251942,-460.0,0.0002698,10]
[376769696,1754110251951,-281.98128384,0.0002698,10]
[376769697,1754110251961,-1002.78010038,0.0002698,10]
[376769698,1754110251971,-460.0,0.0002698,10]
[376769699,1754110251979,-450.0,0.0002698,10]
[376769700,1754110251989,-461.61440369,0.0002698,10]
[376769701,1754110251999,-461.38451025,0.0002698,10]
[376769702,1754110252008,-460.0,0.0002698,10]
[376769703,1754110252017,-463.31932666,0.0002698,10]
[376769704,1754110252028,-460.0,0.0002698,10]
[376769705,1754110252038,-460.0,0.0002698,10]
[376769706,1754110252047,-474.21707404,0.0002698,10]
[376769707,1754110252057,-463.68546493,0.0002698,10]
[376769708,1754110252066,-464.18543787,0.0002698,10]
[376769709,1754110252075,-467.43906612,0.0002698,10]
[376769710,1754110252084,-460.0,0.0002698,10]
[376769711,1754110252093,-462.19551687,0.0002698,10]
[376769712,1754110252103,-460.0,0.0002698,10]
[376769713,1754110252113,-472.75529412,0.0002698,10]
[376769714,1754110252123,-461.72989612,0.0002698,10]
[376769715,1754110252132,-460.0,0.0002698,10]
[376769716,1754110252143,-396.57782633,0.0002698,10]
[376769717,1754110252151,-152.81377,0.0002698,7]
[376769718,1754110252161,-460.0,0.0002698,10]
[376769719,1754110252170,-461.67953289,0.0002698,10]
[376769720,1754110252179,-460.0,0.0002698,10]
[376769721,1754110252189,-460.0,0.0002698,10]
[376769722,1754110252198,-460.0,0.0002698,10]
[376769723,1754110252207,-419.74844633,0.0002698,10]
[376769724,1754110252216,-461.08212452,0.0002698,10]
[376769725,1754110252225,-461.04398578,0.0002698,10]
[376769726,1754110252235,-460.0,0.0002698,10]
[376769727,1754110252244,-463.20306419,0.0002698,10]
[376769728,1754110252253,-322.95203939,0.0002698,10]
[376769729,1754110252262,-460.0,0.0002698,10]
[376769730,1754110252270,-460.0,0.0002698,10]
[376769731,1754110252279,-464.55581458,0.0002698,10]
[376769732,1754110252288,-464.85762574,0.0002698,10]
[376769733,1754110252298,-462.03090954,0.0002698,10]
[376769734,1754110252307,-391.69032383,0.0002698,2]
[376769735,1754110252316,-460.0,0.0002698,10]
[376769736,1754110252325,-6334.67956941,0.0002698,2]
[376769737,1754110252335,-749.74356051,0.0002698,2]
[376769738,1754110252344,-460.0,0.00026987,10]
[376769739,1754110252353,-460.0,0.00026987,10]
[376769740,1754110252363,-257.67,0.00026988,10]
[376769741,1754110252372,-460.0,0.00026988,10]
[376769742,1754110252381,-460.0,0.00026988,10]
[376769743,1754110252391,-344.92,0.00026988,10]
[376769744,1754110252400,-460.0,0.00026988,10]
[376769745,1754110252410,-460.0,0.00026988,10]
[376769746,1754110252419,-460.0,0.00026988,10]
[376769747,1754110252429,-255.56,0.00026988,10]
[376769748,1754110252438,-465.48961357,0.00026989,10]
[376769749,1754110252448,-500.0,0.00026989,10]
[376769750,1754110252457,-470.2588854,0.00026989,10]
[376769751,1754110252466,-465.22588452,0.00026989,10]
[376769752,1754110252475,-311.39808577,0.00026989,10]
[376769753,1754110252485,-460.0,0.00026989,10]
[376769754,1754110252494,-460.0,0.00026989,10]
[376769755,1754110252504,-460.0,0.00026989,10]
[376769756,1754110252512,-471.00352762,0.00026989,10]
[376769757,1754110252522,-393.28227862,0.00026989,10]
[376769758,1754110252533,-187.87342184,0.00026989,10]
[376769759,1754110252542,-470.29447905,0.00026989,10]
[376769760,1754110252551,-460.0,0.00026989,10]
[376769761,1754110252560,-460.0,0.00026989,10]
[376769762,1754110252570,-534.12966465,0.00026989,10]
[376769763,1754110252579,-1599.32,0.00026989,10]
[376769764,1754110252588,-1599.32,0.00026989,10]
[376769765,1754110252597,-1599.32,0.00026989,10]
[376769766,1754110252606,-1599.32,0.00026989,10]
[376769767,1754110252615,-1599.32,0.00026989,10]
[376769768,1754110252624,-1599.32,0.00026989,10]
[376769769,1754110252633,-460.0,0.00026989,10]
[376769770,1754110252642,-460.0,0.00026989,10]
[376769771,1754110252651,-460.0,0.00026989,10]
[376769772,1754110252660,-460.0,0.00026989,10]
[376769773,1754110252669,-65.54435852,0.00026989,10]
[376769774,1754110252781,-460.0,0.00024657,10]
[376769775,1754110252791,-460.0,0.00024657,10]
[376769776,1754110252800,-463.80362353,0.00024657,10]
[376769777,1754110252811,-343.88041447,0.00024657,10]
[376769778,1754110414350,446.31,0.00026027,120]
[376769779,1754110425916,768.08,0.00026027,120]
[376769839,1754111431964,-174.4542977,0.00020114,2]
[376769841,1754111431974,-278.31059186,0.00020359,2]
[376769843,1754111431984,-406.3407342,0.0002044,2]
[376769845,1754111431994,-1200.0,0.00020458,2]
[376769847,1754111432004,-8990.82069401,0.00020459,2]
[376769849,1754111432014,-243.0,0.00020972,2]
[376769851,1754111432024,-300.0,0.00020972,2]
[376769853,1754111432034,-163.0,0.00020972,2]
[376769855,1754111432045,-506.19406184,0.00020973,2]
[376769858,1754111432056,-500.0,0.00020973,2]
[376769860,1754111432066,-501.97610112,0.00020973,2]
[376769862,1754111432076,-41458.29799175,0.00021,2]
[376769864,1754111432086,-200.0,0.00021419,15]
[376769866,1754111432096,-200.0,0.00021419,15]
[376769868,1754111432106,-200.0,0.00021419,15]
[376769870,1754111432116,-200.0,0.00021419,15]
[376769872,1754111432126,-200.0,0.00021419,15]
[376769874,1754111432136,-337.32,0.00022243,2]
[376769876,1754111432147,-200.0,0.00023511,15]
[376769878,1754111432157,-200.0,0.00023511,15]
[376769880,1754111432168,-200.0,0.00023511,15]
[376769882,1754111432178,-200.0,0.00023511,15]
[376769884,1754111432188,-200.0,0.00023511,15]
[376769886,1754111432198,-200.0,0.00023511,15]
[376769889,1754111432208,-200.0,0.00023511,15]
[376769891,1754111432218,-200.16,0.00024,2]
[376769893,1754111432228,-155.99,0.00024383,7]
[376769895,1754111432239,-260.48338986,0.00024483,7]
[376769897,1754111432249,-155.99,0.00024483,7]
[376769899,1754111432259,-155.99,0.00024583,7]
[376769901,1754111432269,-667.05,0.00024647,3]
[376769903,1754111432279,-3030.14,0.00024647,10]
[376769905,1754111432290,-2525.12,0.00024647,10]
[376769907,1754111432300,-426.727,0.00024653,2]
[376769909,1754111432311,-170.81599337,0.00024656,2]
[376769912,1754111432321,-460.0,0.00024657,10]
[376769914,1754111432331,-151.0,0.00024657,7]
[376769916,1754111432342,-151.0,0.00024657,7]
[376769918,1754111432351,-151.0,0.00024657,7]
[376769936,1754111432514,-151.0,0.00024657,7]
[376769938,1754111432525,-151.0,0.00024657,7]
[376769940,1754111432534,-151.0,0.00024657,7]
[376769942,1754111432543,-151.0,0.00024657,7]
[376769944,1754111432552,-460.0,0.00024657,10]
[376769946,1754111432562,-460.0,0.00024657,10]
[376769948,1754111432570,-151.0,0.00024657,7]
[376769950,1754111432579,-460.0,0.00024657,10]
[376769952,1754111432590,-151.0,0.00024657,7]
[376769954,1754111432599,-460.0,0.00024657,10]
[376769956,1754111432608,-154.6809,0.00024657,7]
[376769958,1754111432617,-460.0,0.00024657,10]
[376769960,1754111432627,-460.0,0.00024657,10]
[376769962,1754111432637,-460.0,0.00024657,10]
[376769964,1754111432646,-460.0,0.00024657,10]
[376769966,1754111432654,-460.0,0.00024657,10]
[376769968,1754111432664,-307.56,0.00024657,10]
[376769970,1754111432673,-160.144118,0.00024657,7]
[376769972,1754111432682,-460.0,0.00024657,10]
[376769974,1754111432691,-460.0,0.00024657,10]
[376769976,1754111432701,-460.0,0.00024657,10]
[376769978,1754111432710,-460.0,0.00024657,10]
[376769980,1754111432719,-460.0,0.00024657,10]
[376769982,1754111432729,-460.0,0.00024657,10]
[376769984,1754111432738,-460.0,0.00024657,10]
[376769986,1754111432747,-460.0,0.00024657,10]
[376769988,1754111432756,-498.77942532,0.00024657,10]
[376769990,1754111432766,-460.0,0.00024657,10]
[376769991,1754111432775,-460.0,0.00024657,10]
[376769993,1754111432784,-460.0,0.00024657,10]
[376769995,1754111432794,-460.0,0.00024657,10]
[376769997,1754111432803,-381.34,0.00024657,10]
[376769999,1754111432812,-607.64915748,0.00024657,10]
[376770001,1754111432822,-462.59235091,0.00024657,10]
[376770003,1754111432833,-633.33,0.00024657,10]
[376770005,1754111432842,-574.71,0.00024657,10]
[376770007,1754111432851,-574.71,0.00024657,10]
[376770009,1754111432860,-574.71,0.00024657,10]
[376770011,1754111432869,-574.71,0.00024657,10]
[376770013,1754111432878,-574.71,0.00024657,10]
[376770015,1754111432887,-538.64194999,0.00024657,10]
[376770017,1754111432896,-460.0,0.00024657,10]
[376770019,1754111432905,-460.0,0.00024657,10]
[376770021,1754111432914,-460.0,0.00024657,10]
[376770023,1754111432924,-460.0,0.00024657,10]
[376770025,1754111432933,-460.0,0.00024657,10]
[376770027,1754111432942,-460.0,0.00024657,10]
[376770029,1754111432951,-153.62966719,0.00024657,10]
[376770031,1754111432962,-460.0,0.00024657,10]
[376770033,1754111432972,-460.61666411,0.00024657,10]
[376770035,1754111432981,-460.0,0.00024657,10]
[376770037,1754111432991,-460.0,0.00024657,10]
[376770039,1754111433000,-460.0,0.00024657,10]
[376770041,1754111433013,-460.0,0.00024657,10]
[376770043,1754111433024,-1719.32,0.00024657,10]
[376770045,1754111433034,-1719.32,0.00024657,10]
[376770047,1754111433043,-1719.32,0.00024657,10]
[376770049,1754111433052,-522.54859675,0.00024657,10]
[376770051,1754111433063,-1719.32,0.00024657,10]
[376770053,1754111433072,-89.31300935,0.00024657,10]
[376770056,1754111433087,-1630.00699065,0.00024657,10]
[376770058,1754111433096,-72.06841525,0.00024657,10]
[376770060,1754111433108,-1647.25158475,0.00024657,10]
[376770062,1754111433119,-1719.32,0.00024657,10]
[376770064,1754111433128,-460.0,0.00024657,10]
[376770066,1754111433137,-187.75711561,0.00024657,10]
[376770068,1754111433146,-460.0,0.00024657,10]
[376770070,1754111433156,-460.0,0.00024657,10]
[376770072,1754111433165,-460.0,0.00024657,10]
[376770074,1754111433174,-460.0,0.00024657,10]
[376770076,1754111433184,-460.0,0.00024657,10]
[376770078,1754111433193,-460.0,0.00024657,10]
[376770080,1754111433202,-460.0,0.00024657,10]
[376770082,1754111433212,-460.0,0.00024657,10]
[376770084,1754111433221,-460.0,0.00024657,10]
[376770086,1754111433230,-460.0,0.00024657,10]
[376770088,1754111433239,-460.0,0.00024657,10]
[376770090,1754111433249,-460.0,0.00024657,10]
[376770092,1754111433258,-460.0,0.00024657,10]
[376770094,1754111433267,-606.66865096,0.00024657,10]
[376770096,1754111433277,-465.06219392,0.00024657,10]
[376770098,1754111433286,-522.04,0.00024657,10]
[376770100,1754111433296,-460.0,0.00024657,10]
[376770101,1754111433306,-470.79662353,0.00024657,10]
[376770102,1754111433316,-522.04,0.00024657,10]
[376770103,1754111433325,-522.04,0.00024657,10]
[376770104,1754111433335,-522.04,0.00024657,10]
[376770105,1754111433344,-522.04,0.00024657,10]
[376770106,1754111433354,-522.04,0.00024657,10]
[376770107,1754111433363,-522.04,0.00024657,10]
[376770108,1754111433373,-460.0,0.00024657,10]
[376770109,1754111433382,-446.44217799,0.00024657,10]
[376770110,1754111433391,-460.0,0.00024657,10]
[376770111,1754111433401,-460.0,0.00024657,10]
[376770112,1754111433411,-460.0,0.00024657,10]
[376770113,1754111433420,-460.0,0.00024657,10]
[376770114,1754111433429,-460.0,0.00024657,10]
[376770115,1754111433439,-460.0,0.00024657,10]
[376770116,1754111433452,-460.0,0.00024657,10]
[376770117,1754111433464,-460.0,0.00024657,10]
[376770118,1754111433474,-472.25559624,0.00024657,10]
[376770119,1754111433483,-460.0,0.00024657,10]
[376770120,1754111433492,-460.0,0.00024657,10]
[376770121,1754111433502,-460.0,0.00024657,10]
[376770122,1754111433511,-460.0,0.00024657,10]
[376770123,1754111433521,-473.78615505,0.00024657,10]
[376770124,1754111433530,-460.0,0.00024657,10]
[376770125,1754111433539,-460.0,0.00024657,10]
[376770126,1754111433548,-460.0,0.00024657,10]
[376770127,1754111433558,-460.0,0.00024657,10]
[376770128,1754111433567,-460.0,0.00024657,10]
[376770129,1754111433576,-460.0,0.00024657,10]
[376770130,1754111433585,-460.0,0.00024657,10]
[376770131,1754111433594,-460.0,0.00024657,10]
[376770133,1754111433603,-206.15780024,0.00024657,10]
[376770134,1754111433612,-405.49522147,0.00024657,10]
[376770135,1754111433621,-204.9,0.00024657,10]
[376770136,1754111433634,-460.0,0.00024657,10]
[376770137,1754111433644,-460.0,0.00024657,10]
[376770138,1754111433653,-758.83,0.00024657,10]
[376770139,1754111433662,-758.83,0.00024657,10]
[376770140,1754111433672,-460.0,0.00024657,10]
[376770141,1754111433681,-467.70837138,0.00024657,10]
[376770142,1754111433691,-460.0,0.00024657,10]
[376770143,1754111433701,-758.83,0.00024657,10]
[376770144,1754111433711,-460.0,0.00024657,10]
[376770145,1754111433720,-460.0,0.00024657,10]
[376770146,1754111433731,-758.83,0.00024657,10]
[376770147,1754111433747,-758.83,0.00024657,10]
[376770148,1754111433756,-470.58489781,0.00024657,10]
[376770149,1754111433766,-758.83,0.00024657,10]
[376770150,1754111433775,-758.83,0.00024657,10]
[376770151,1754111433784,-460.0,0.00024657,10]
[376770152,1754111433793,-460.0,0.00024657,10]
[376770153,1754111433802,-460.0,0.00024657,10]
[376770154,1754111433812,-460.0,0.00024657,10]
[376770155,1754111433821,-576.11958553,0.00024657,10]
[376770156,1754111433831,-460.0,0.00024657,10]
[376770157,1754111433840,-460.0,0.00024657,10]
[376770158,1754111433849,-460.0,0.00024657,10]
[376770159,1754111433858,-460.0,0.00024657,10]
[376770160,1754111433867,-460.0,0.00024657,10]
[376770161,1754111433877,-465.22482646,0.00024657,10]
[376770162,1754111433886,-460.0,0.00024657,10]
[376770163,1754111433895,-481.08,0.00024657,10]
[376770164,1754111433904,-460.0,0.00024657,10]
[376770165,1754111433913,-460.0,0.00024657,10]
[376770166,1754111433922,-460.0,0.00024657,10]
[376770167,1754111433932,-460.0,0.00024657,10]
[376770168,1754111433941,-460.0,0.00024657,10]
[376770169,1754111433951,-460.0,0.00024657,10]
[376770170,1754111433960,-460.0,0.00024657,10]
[376770171,1754111433969,-460.0,0.00024657,10]
[376770172,1754111433978,-460.0,0.00024657,10]
[376770173,1754111433988,-460.0,0.00024657,10]
[376770174,1754111433997,-460.0,0.00024657,10]
[376770175,1754111434007,-460.0,0.00024657,10]
[376770176,1754111434016,-497.64,0.00024657,10]
[376770177,1754111434025,-460.0,0.00024657,10]
[376770178,1754111434034,-460.0,0.00024657,10]
[376770179,1754111434043,-460.0,0.00024657,10]
[376770180,1754111434052,-466.77436631,0.00024657,10]
[376770181,1754111434062,-460.0,0.00024657,10]
[376770182,1754111434072,-460.0,0.00024657,10]
[376770183,1754111434081,-460.0,0.00024657,10]
[376770184,1754111434090,-460.0,0.00024657,10]
[376770185,1754111434099,-153.79979,0.00024657,7]
[376770186,1754111434109,-468.75159187,0.00024657,10]
[376770187,1754111434118,-153.001054,0.00024657,7]
[376770188,1754111434127,-470.75736259,0.00024657,10]
[376770189,1754111434136,-460.0,0.00024657,10]
[376770190,1754111434145,-460.0,0.00024657,10]
[376770191,1754111434154,-460.0,0.00024657,10]
[376770192,1754111434164,-419.31,0.00024657,10]
[376770193,1754111434174,-460.0,0.00024657,10]
[376770194,1754111434183,-460.0,0.00024657,10]
[376770195,1754111434202,-460.0,0.00024657,10]
[376770196,1754111434212,-176.2,0.00024657,10]
[376770197,1754111434222,-460.0,0.00024657,10]
[376770198,1754111434232,-482.41721454,0.00024657,10]
[376770199,1754111434241,-460.9204782,0.00024657,10]
[376770200,1754111434251,-460.0,0.00024657,10]
[376770201,1754111434260,-460.0,0.00024657,10]
[376770202,1754111434270,-460.0,0.00024657,10]
[376770203,1754111434279,-460.0,0.00024657,10]
[376770205,1754111434288,-460.0,0.00024657,10]
[376770207,1754111434298,-460.82281349,0.00024657,10]
[376770209,1754111434308,-460.0,0.00024657,10]
[376770211,1754111434317,-460.0,0.00024657,10]
[376770213,1754111434327,-506.72,0.00024657,10]
[376770215,1754111434336,-151.0,0.00024657,7]
[376770217,1754111434345,-151.0,0.00024657,7]
[376770219,1754111434355,-506.72,0.00024657,10]
[376770221,1754111434364,-506.72,0.00024657,10]
[376770223,1754111434374,-506.72,0.00024657,10]
[376770225,1754111434383,-527.02465094,0.00024657,10]
[376770227,1754111434393,-506.72,0.00024657,10]
[376770229,1754111434402,-460.0,0.00024657,10]
[376770231,1754111434412,-460.0,0.00024657,10]
[376770233,1754111434422,-460.0,0.00024657,10]
[376770235,1754111434431,-460.0,0.00024657,10]
[376770237,1754111434441,-460.0,0.00024657,10]
[376770239,1754111434451,-506.72,0.00024657,10]
[376770241,1754111434461,-460.0,0.00024657,10]
[376770243,1754111434471,-460.0,0.00024657,10]
[376770245,1754111434480,-460.0,0.00024657,10]
[376770247,1754111434489,-506.72,0.00024657,10]
[376770249,1754111434498,-460.0,0.00024657,10]
[376770251,1754111434508,-460.0,0.00024657,10]
[376770253,1754111434517,-460.0,0.00024657,10]
[376770255,1754111434527,-324.39658148,0.00024657,10]
[376770257,1754111434535,-468.34281771,0.00024657,10]
[376770259,1754111434544,-460.0,0.00024657,10]
[376770261,1754111434553,-460.0,0.00024657,10]
[376770263,1754111434562,-460.0,0.00024657,10]
[376770265,1754111434571,-460.0,0.00024657,10]
[376770267,1754111434581,-460.0,0.00024657,10]
[376770268,1754111434590,-372.46289426,0.00024657,10]
[376770270,1754111434599,-460.0,0.00024657,10]
[376770272,1754111434608,-608.78019521,0.00024657,10]
[376770274,1754111434618,-460.0,0.00024657,10]
[376770276,1754111434630,-460.0,0.00024657,10]
[376770278,1754111434639,-460.0,0.00024657,10]
[376770280,1754111434648,-460.0,0.00024657,10]
[376770282,1754111434658,-282.81202987,0.00024657,10]
[376770284,1754111434667,-460.0,0.00024657,10]
[376770286,1754111434676,-460.0,0.00024657,10]
[376770288,1754111434685,-460.0,0.00024657,10]
[376770290,1754111434694,-460.0,0.00024657,10]
[376770292,1754111434704,-460.0,0.00024657,10]
[376770294,1754111434713,-460.0,0.00024657,10]
[376770296,1754111434722,-460.0,0.00024657,10]
[376770298,1754111434731,-460.0,0.00024657,10]
[376770300,1754111434740,-460.0,0.00024657,10]
[376770302,1754111434748,-460.0,0.00024657,10]
[376770304,1754111434757,-460.0,0.00024657,10]
[376770306,1754111434767,-460.0,0.00024657,10]
[376770308,1754111434776,-460.0,0.00024657,10]
[376770310,1754111434785,-460.0,0.00024657,10]
[376770312,1754111434794,-460.0,0.00024657,10]
[376770314,1754111434803,-460.0,0.00024657,10]
[376770316,1754111434812,-453.94417048,0.00024657,10]
[376770318,1754111434821,-460.0,0.00024657,10]
[376770320,1754111434830,-469.97595835,0.00024657,10]
[376770322,1754111434839,-460.0,0.00024657,10]
[376770324,1754111434848,-325.57932852,0.00024657,10]
[376770326,1754111434857,-460.0,0.00024657,10]
[376770328,1754111434865,-460.0,0.00024657,10]
[376770330,1754111434874,-460.0,0.00024657,10]
[376770332,1754111434884,-460.0,0.00024657,10]
[376770334,1754111434893,-460.0,0.00024657,10]
[376770336,1754111434902,-430.93164204,0.00024657,10]
[376770338,1754111434911,-345.50537266,0.00024657,10]
[376770340,1754111434920,-460.0,0.00024657,10]
[376770342,1754111434929,-460.0,0.00024657,10]
[376770344,1754111434938,-460.0,0.00024657,10]
[376770346,1754111434947,-460.0,0.00024657,10]
[376770348,1754111434957,-460.0,0.00024657,10]
[376770350,1754111434966,-181.13346434,0.00024657,10]
[376770352,1754111434975,-460.0,0.00024657,10]
[376770354,1754111434984,-460.0,0.00024657,10]
[376770356,1754111434993,-460.0,0.00024657,10]
[376770358,1754111435002,-460.0,0.00024657,10]
[376770360,1754111435011,-460.0,0.00024657,10]
[376770362,1754111435020,-460.0,0.00024657,10]
[376770364,1754111435029,-460.0,0.00024657,10]
[376770366,1754111435038,-460.0,0.00024657,10]
[376770368,1754111435047,-460.0,0.00024657,10]
[376770370,1754111435056,-460.0,0.00024657,10]
[376770372,1754111435065,-475.68,0.00024657,10]
[376770374,1754111435075,-475.68,0.00024657,10]
[376770376,1754111435084,-475.68,0.00024657,10]
[376770378,1754111435093,-475.68,0.00024657,10]
[376770380,1754111435102,-475.68,0.00024657,10]
[376770382,1754111435111,-475.68,0.00024657,10]
[376770384,1754111435120,-475.68,0.00024657,10]
[376770386,1754111435129,-475.68,0.00024657,10]
[376770388,1754111435138,-460.0,0.00024657,10]
[376770389,1754111435147,-460.0,0.00024657,10]
[376770391,1754111435156,-460.0,0.00024657,10]
[376770393,1754111435165,-442.16813385,0.00024657,10]